{"text_format":"3","workbook":"xlsx","n_sheets":4,"sheets":["Početak","Budžet za venčanje","Odeća-Prijem-Muzika-Slike","Ukrasi-Cveće-Pokloni-Putovanje"],"not_rendered":{"charts":1,"defined_names":22},"read":"whole","date_system":"1900"}

{"sheet":"Početak","index":0,"n_rows":7,"n_cols":2,"rows_kept":7}
[null,"OSNOVNI PODACI O OVOM PREDLOŠKU"]
[null,"Koristite ovaj predložak da biste pratili troškove vezane za venčanje."]
[null,"Unesite procenjeno i stvarno troškove iz različitih kategorija u posebne radne listove."]
[null,"Rezime budžeta za venčanje i grafikon automatski se ažuriraju za vas."]
[null,"Beleška: "]
[null,"Dodatna uputstva navedena su u koloni A na svakom radnom listu. Taj tekst je namerno skriven. Da biste uklonili tekst, izaberite kolonu A, a zatim izaberite stavku „IZBRIŠI“. Da biste otkrili tekst, izaberite kolonu A, a zatim promenite boju fonta."]
[null,"Da biste saznali više o tabelama, pritisnite taster SHIFT, a zatim unutar tabele pritisnite taster F10, izaberite opciju „TABELA“, a zatim stavku „ALTERNATIVNI TEKST“."]

{"sheet":"Budžet za venčanje","index":1,"n_rows":19,"n_cols":6,"rows_kept":19,"merged":[[2,2,4,5],[18,2,42,5]]}
["Na ovom radnom listu napravite budžet za venčanje. Unesite detalje u tabele u radnom listu „Odeća-Prijem-Muzika-Slike“ i radnom listu „Ukrasi-Cveće-Pokloni-Putovanje“ da biste ažurirali rezime i grafikon u trenutnom radnom listu. Korisna uputstva o tome kako da koristite ovaj radni list nalaze se u ćelijama u ovoj koloni. Oznaka „Datum venčanja“ je u ćeliji C1.",null,"Datum venčanja:"]
["Unesite datum venčanja u ćeliju C2. Preostalo dana se automatski izračunava u ćeliji E2.",null,{"$f":"TODAY()+365","v":"2019-12-04"},"Preostalo dana:",{"$f":"C2-TODAY()","v":365}]
["Naslov ovog radnog lista nalazi se u ćeliji C3. Sledeće uputstvo se nalazi u ćeliji A6.",null,"Rezime budžeta za venčanje"]
[]
[]
["Tabela sa rezime budžeta koja počinje u ćeliji C6 automatski se ažurira. Sledeće uputstvo se nalazi u ćeliji A19.",null,"KATEGORIJA","PROCENJENO","STVARNO","IZNAD/ISPOD"]
[null,null,"Odeća",{"$f":"Apparel_Total_est","v":{"v":9490,"d":"9,490.00"}},{"$f":"Apparel_Total_act","v":{"v":9770,"d":"9,770.00"}},{"$f":"RezimeBudžeta[[#This Row],[PROCENJENO]]-RezimeBudžeta[[#This Row],[STVARNO]]","v":{"v":-280,"d":"-280.00"}}]
[null,null,"Prijem",{"$f":"Reception_Total_est","v":{"v":1050,"d":"1,050.00"}},{"$f":"Reception_Total_act","v":{"v":928,"d":"928.00"}},{"$f":"RezimeBudžeta[[#This Row],[PROCENJENO]]-RezimeBudžeta[[#This Row],[STVARNO]]","v":{"v":122,"d":"122.00"}}]
[null,null,"Muzika",{"$f":"Music_Entertainment_Total_est","v":{"v":600,"d":"600.00"}},{"$f":"Music_Entertainment_Total_act","v":{"v":400,"d":"400.00"}},{"$f":"RezimeBudžeta[[#This Row],[PROCENJENO]]-RezimeBudžeta[[#This Row],[STVARNO]]","v":{"v":200,"d":"200.00"}}]
[null,null,"Štampanje",{"$f":"Printing__Stationery_Total_est","v":{"v":935,"d":"935.00"}},{"$f":"Printing__Stationery_Total_act","v":{"v":870,"d":"870.00"}},{"$f":"RezimeBudžeta[[#This Row],[PROCENJENO]]-RezimeBudžeta[[#This Row],[STVARNO]]","v":{"v":65,"d":"65.00"}}]
[null,null,"Fotografija",{"$f":"Photography_Total_est","v":{"v":1625,"d":"1,625.00"}},{"$f":"Photography_Total_act","v":{"v":1575,"d":"1,575.00"}},{"$f":"RezimeBudžeta[[#This Row],[PROCENJENO]]-RezimeBudžeta[[#This Row],[STVARNO]]","v":{"v":50,"d":"50.00"}}]
[null,null,"Ukrasi",{"$f":"Decorations_Total_est","v":{"v":700,"d":"700.00"}},{"$f":"Decorations_Total_act","v":{"v":720,"d":"720.00"}},{"$f":"RezimeBudžeta[[#This Row],[PROCENJENO]]-RezimeBudžeta[[#This Row],[STVARNO]]","v":{"v":-20,"d":"-20.00"}}]
[null,null,"Cveće",{"$f":"Flowers_Total_est","v":{"v":900,"d":"900.00"}},{"$f":"Flowers_Total_act","v":{"v":850,"d":"850.00"}},{"$f":"RezimeBudžeta[[#This Row],[PROCENJENO]]-RezimeBudžeta[[#This Row],[STVARNO]]","v":{"v":50,"d":"50.00"}}]
[null,null,"Pokloni",{"$f":"Gifts_Total_est","v":{"v":1345,"d":"1,345.00"}},{"$f":"Gifts_Total_act","v":{"v":1075,"d":"1,075.00"}},{"$f":"RezimeBudžeta[[#This Row],[PROCENJENO]]-RezimeBudžeta[[#This Row],[STVARNO]]","v":{"v":270,"d":"270.00"}}]
[null,null,"Putovanja",{"$f":"Travel_Transportation_Total_est","v":{"v":100,"d":"100.00"}},{"$f":"Travel_Transportation_Total_act","v":{"v":165,"d":"165.00"}},{"$f":"RezimeBudžeta[[#This Row],[PROCENJENO]]-RezimeBudžeta[[#This Row],[STVARNO]]","v":{"v":-65,"d":"-65.00"}}]
[null,null,"Drugo",{"$f":"Other_Expenses_Total_est","v":{"v":885,"d":"885.00"}},{"$f":"Other_Expenses_Total_act","v":{"v":1021,"d":"1,021.00"}},{"$f":"RezimeBudžeta[[#This Row],[PROCENJENO]]-RezimeBudžeta[[#This Row],[STVARNO]]","v":{"v":-136,"d":"-136.00"}}]
[null,null,"Ukupni troškovi",{"$f":"SUBTOTAL(109,RezimeBudžeta[PROCENJENO])","v":{"v":17630,"d":"17,630.00"}},{"$f":"SUBTOTAL(109,RezimeBudžeta[STVARNO])","v":{"v":17374,"d":"17,374.00"}},{"$f":"SUBTOTAL(109,RezimeBudžeta[IZNAD/ISPOD])","v":{"v":256,"d":"256.00"}}]
[]
["Kružni grafikon u ćeliji C19 automatski se ažurira.",null,"Kružni grafikon koji prikazuje procenat troškova svake kategorije nalazi se u ovoj ćeliji."]

{"sheet":"Odeća-Prijem-Muzika-Slike","index":2,"n_rows":56,"n_cols":6,"rows_kept":56,"merged":[[16,1,16,4],[28,1,28,4],[29,1,29,4],[35,1,35,4],[48,1,48,4]]}
["Unesite procenjeno i stvarno troškove za svaku kategorija u odgovarajućim tabelama u ovom radnom listu. Iznos iznad ili ispod postavljene vrednosti automatski se izračunava. Oznaka „Odeća“ je u ćeliji sa desne strane. Korisna uputstva o tome kako da koristite ovaj radni list nalaze se u ćelijama u ovoj koloni. Pritisnite strelicu nadole da biste počeli.","Odeća",{"$nulls":3}," "]
[" Unesite detalje u tabelu „Odeća“ počevši od ćelije sa desne strane. Sledeće uputstvo se nalazi u ćeliji A18.","KATEGORIJA","PROCENJENO","STVARNO","IZNAD/ISPOD"," "]
[null,"Verenički prsten (prstenje)",{"v":1500,"d":"1,500.00"},{"v":1500,"d":"1,500.00"},{"$f":"'Odeća-Prijem-Muzika-Slike'!$C3-'Odeća-Prijem-Muzika-Slike'!$D3","v":{"v":0,"d":"0.00"}}]
[null,"Prsten budućeg supružnika 1",{"v":2000,"d":"2,000.00"},{"v":2300,"d":"2,300.00"},{"$f":"'Odeća-Prijem-Muzika-Slike'!$C4-'Odeća-Prijem-Muzika-Slike'!$D4","v":{"v":-300,"d":"-300.00 "}}]
[null,"Haljina/odelo budućeg supružnika 1",{"v":3000,"d":"3,000.00"},{"v":2750,"d":"2,750.00"},{"$f":"'Odeća-Prijem-Muzika-Slike'!$C5-'Odeća-Prijem-Muzika-Slike'!$D5","v":{"v":250,"d":"250.00"}}]
[null,"Veo/ukras na glavi budućeg supružnika 1",{"v":500,"d":"500.00"},{"v":500,"d":"500.00"},{"$f":"'Odeća-Prijem-Muzika-Slike'!$C6-'Odeća-Prijem-Muzika-Slike'!$D6","v":{"v":0,"d":"0.00"}}]
[null,"Cipele budućeg supružnika 1",{"v":350,"d":"350.00"},{"v":300,"d":"300.00"},{"$f":"'Odeća-Prijem-Muzika-Slike'!$C7-'Odeća-Prijem-Muzika-Slike'!$D7","v":{"v":50,"d":"50.00"}}]
[null,"Nakit budućeg supružnika 1",{"v":400,"d":"400.00"},{"v":550,"d":"550.00"},{"$f":"'Odeća-Prijem-Muzika-Slike'!$C8-'Odeća-Prijem-Muzika-Slike'!$D8","v":{"v":-150,"d":"-150.00 "}}]
[null,"Čarape budućeg supružnika 1",{"v":20,"d":"20.00"},{"v":20,"d":"20.00"},{"$f":"'Odeća-Prijem-Muzika-Slike'!$C9-'Odeća-Prijem-Muzika-Slike'!$D9","v":{"v":0,"d":"0.00"}}]
[null,"Prsten budućeg supružnika 2",{"v":300,"d":"300.00"},{"v":250,"d":"250.00"},{"$f":"'Odeća-Prijem-Muzika-Slike'!$C10-'Odeća-Prijem-Muzika-Slike'!$D10","v":{"v":50,"d":"50.00"}}]
[null,"Haljina/odelo budućeg supružnika 2",{"v":300,"d":"300.00"},{"v":350,"d":"350.00"},{"$f":"'Odeća-Prijem-Muzika-Slike'!$C11-'Odeća-Prijem-Muzika-Slike'!$D11","v":{"v":-50,"d":"-50.00 "}}]
[null,"Veo/ukras na glavi budućeg supružnika 2",{"v":500,"d":"500.00"},{"v":500,"d":"500.00"},{"$f":"'Odeća-Prijem-Muzika-Slike'!$C12-'Odeća-Prijem-Muzika-Slike'!$D12","v":{"v":0,"d":"0.00"}}]
[null,"Cipele budućeg supružnika 2",{"v":200,"d":"200.00"},{"v":175,"d":"175.00"},{"$f":"'Odeća-Prijem-Muzika-Slike'!$C13-'Odeća-Prijem-Muzika-Slike'!$D13","v":{"v":25,"d":"25.00"}}]
[null,"Nakit budućeg supružnika 2",{"v":400,"d":"400.00"},{"v":550,"d":"550.00"},{"$f":"'Odeća-Prijem-Muzika-Slike'!$C14-'Odeća-Prijem-Muzika-Slike'!$D14","v":{"v":-150,"d":"-150.00 "}}]
[null,"Čarape budućeg supružnika 2",{"v":20,"d":"20.00"},{"v":25,"d":"25.00"},{"$f":"'Odeća-Prijem-Muzika-Slike'!$C15-'Odeća-Prijem-Muzika-Slike'!$D15","v":{"v":-5,"d":"-5.00 "}}]
[null,"Ukupno za odeću",{"$f":"SUBTOTAL(109,Odeća[PROCENJENO])","v":{"v":9490,"d":"9,490.00"}},{"$f":"SUBTOTAL(109,Odeća[STVARNO])","v":{"v":9770,"d":"9,770.00"}},{"$f":"SUBTOTAL(109,Odeća[IZNAD/ISPOD])","v":{"v":-280,"d":"-280.00 "}}]
[]
["Oznaka „Prijem“ je u ćeliji sa desne strane.","Prijem*"]
["Unesite troškove prijem, izuzimajući troškove za zabavu i ukrase, u tabeli počevši od ćelije sa desne strane. Sledeće uputstvo se nalazi u ćeliji A31.","KATEGORIJA","PROCENJENO","STVARNO","IZNAD/ISPOD"]
[null,"Naknade za sobe/direktora",{"v":200,"d":"200.00"},{"v":150,"d":"150.00"},{"$f":"'Odeća-Prijem-Muzika-Slike'!$C20-'Odeća-Prijem-Muzika-Slike'!$D20","v":{"v":50,"d":"50.00"}}]
[null,"Stolovi i stolice",{"v":100,"d":"100.00"},{"v":50,"d":"50.00"},{"$f":"'Odeća-Prijem-Muzika-Slike'!$C21-'Odeća-Prijem-Muzika-Slike'!$D21","v":{"v":50,"d":"50.00"}}]
[null,"Hrana",{"v":0,"d":"0.00"},{"v":0,"d":"0.00"},{"$f":"'Odeća-Prijem-Muzika-Slike'!$C22-'Odeća-Prijem-Muzika-Slike'!$D22","v":{"v":0,"d":"0.00"}}]
[null,"Pića",{"v":0,"d":"0.00"},{"v":0,"d":"0.00"},{"$f":"'Odeća-Prijem-Muzika-Slike'!$C23-'Odeća-Prijem-Muzika-Slike'!$D23","v":{"v":0,"d":"0.00"}}]
[null,"Posteljina",{"v":0,"d":"0.00"},{"v":0,"d":"0.00"},{"$f":"'Odeća-Prijem-Muzika-Slike'!$C24-'Odeća-Prijem-Muzika-Slike'!$D24","v":{"v":0,"d":"0.00"}}]
[null,"Torta",{"v":700,"d":"700.00"},{"v":700,"d":"700.00"},{"$f":"'Odeća-Prijem-Muzika-Slike'!$C25-'Odeća-Prijem-Muzika-Slike'!$D25","v":{"v":0,"d":"0.00"}}]
[null,"Usluge",{"v":50,"d":"50.00"},{"v":28,"d":"28.00"},{"$f":"'Odeća-Prijem-Muzika-Slike'!$C26-'Odeća-Prijem-Muzika-Slike'!$D26","v":{"v":22,"d":"22.00"}}]
[null,"Osoblje i zahvalnice",{"v":0,"d":"0.00"},{"v":0,"d":"0.00"},{"$f":"'Odeća-Prijem-Muzika-Slike'!$C27-'Odeća-Prijem-Muzika-Slike'!$D27","v":{"v":0,"d":"0.00"}}]
[null,"Ukupno za prijem",{"$f":"SUBTOTAL(109,Prijem[PROCENJENO])","v":{"v":1050,"d":"1,050.00"}},{"$f":"SUBTOTAL(109,Prijem[STVARNO])","v":{"v":928,"d":"928.00"}},{"$f":"SUBTOTAL(109,Prijem[IZNAD/ISPOD])","v":{"v":122,"d":"122.00"}}]
[null,"* Isključuje zabavu i ukrase"]
[]
["Oznaka „Muzika“ ili „Zabava“ je u ćeliji sa desne strane.","Muzika/zabava"]
["Unesite detalje u tabelu „Muzika“ počevši od ćelije sa desne strane. Sledeće uputstvo se nalazi u ćeliji A37.","KATEGORIJA","PROCENJENO","STVARNO","IZNAD/ISPOD"]
[null,"Muzičari za ceremoniju",{"v":400,"d":"400.00"},{"v":400,"d":"400.00"},{"$f":"'Odeća-Prijem-Muzika-Slike'!$C33-'Odeća-Prijem-Muzika-Slike'!$D33","v":{"v":0,"d":"0.00"}}]
[null,"Bend/DJ za prijem",{"v":200,"d":"200.00"},{"v":0,"d":"0.00"},{"$f":"'Odeća-Prijem-Muzika-Slike'!$C34-'Odeća-Prijem-Muzika-Slike'!$D34","v":{"v":200,"d":"200.00"}}]
[null,"Ukupno za muziku/zabavu",{"$f":"SUBTOTAL(109,Muzika[PROCENJENO])","v":{"v":600,"d":"600.00"}},{"$f":"SUBTOTAL(109,Muzika[STVARNO])","v":{"v":400,"d":"400.00"}},{"$f":"SUBTOTAL(109,Muzika[IZNAD/ISPOD])","v":{"v":200,"d":"200.00"}}]
[]
["Oznaka „Štampanje“ ili „Podloga za pisanje“ je u ćeliji sa desne strane.","Štampanje/podloga za pisanje"]
["Unesite detalje u tabelu „Štampanje“ počevši od ćelije sa desne strane. Sledeće uputstvo se nalazi u ćeliji A50.","KATEGORIJA","PROCENJENO","STVARNO","IZNAD/ISPOD"]
[null,"Pozivnice",{"v":500,"d":"500.00"},{"v":450,"d":"450.00"},{"$f":"'Odeća-Prijem-Muzika-Slike'!$C39-'Odeća-Prijem-Muzika-Slike'!$D39","v":{"v":50,"d":"50.00"}}]
[null,"Objave",{"v":200,"d":"200.00"},{"v":175,"d":"175.00"},{"$f":"'Odeća-Prijem-Muzika-Slike'!$C40-'Odeća-Prijem-Muzika-Slike'!$D40","v":{"v":25,"d":"25.00"}}]
[null,"Zahvalnice",{"v":100,"d":"100.00"},{"v":100,"d":"100.00"},{"$f":"'Odeća-Prijem-Muzika-Slike'!$C41-'Odeća-Prijem-Muzika-Slike'!$D41","v":{"v":0,"d":"0.00"}}]
[null,"Lična podloga za pisanje",{"v":0,"d":"0.00"},{"v":0,"d":"0.00"},{"$f":"'Odeća-Prijem-Muzika-Slike'!$C42-'Odeća-Prijem-Muzika-Slike'!$D42","v":{"v":0,"d":"0.00"}}]
[null,"Knjiga gostiju",{"v":25,"d":"25.00"},{"v":25,"d":"25.00"},{"$f":"'Odeća-Prijem-Muzika-Slike'!$C43-'Odeća-Prijem-Muzika-Slike'!$D43","v":{"v":0,"d":"0.00"}}]
[null,"Programi",{"v":75,"d":"75.00"},{"v":80,"d":"80.00"},{"$f":"'Odeća-Prijem-Muzika-Slike'!$C44-'Odeća-Prijem-Muzika-Slike'!$D44","v":{"v":-5,"d":"-5.00 "}}]
[null,"Prijemne salvete",{"v":35,"d":"35.00"},{"v":40,"d":"40.00"},{"$f":"'Odeća-Prijem-Muzika-Slike'!$C45-'Odeća-Prijem-Muzika-Slike'!$D45","v":{"v":-5,"d":"-5.00 "}}]
[null,"Šibice",{"v":0,"d":"0.00"},{"v":0,"d":"0.00"},{"$f":"'Odeća-Prijem-Muzika-Slike'!$C46-'Odeća-Prijem-Muzika-Slike'!$D46","v":{"v":0,"d":"0.00"}}]
[null,"Krasnopis",{"v":0,"d":"0.00"},{"v":0,"d":"0.00"},{"$f":"'Odeća-Prijem-Muzika-Slike'!$C47-'Odeća-Prijem-Muzika-Slike'!$D47","v":{"v":0,"d":"0.00"}}]
[null,"Ukupno za štampanje/podlogu za pisanje",{"$f":"SUBTOTAL(109,Štampanje[PROCENJENO])","v":{"v":935,"d":"935.00"}},{"$f":"SUBTOTAL(109,Štampanje[STVARNO])","v":{"v":870,"d":"870.00"}},{"$f":"SUBTOTAL(109,Štampanje[IZNAD/ISPOD])","v":{"v":65,"d":"65.00"}}]
[]
["Oznaka „Fotografija“ je u ćeliji sa desne strane.","Fotografija"]
["Unesite detalje u tabelu „Fotografija“ počevši od ćelije sa desne strane.","KATEGORIJA","PROCENJENO","STVARNO","IZNAD/ISPOD"]
[null,"Formalnosti",{"v":1300,"d":"1,300.00"},{"v":1300,"d":"1,300.00"},{"$f":"'Odeća-Prijem-Muzika-Slike'!$C52-'Odeća-Prijem-Muzika-Slike'!$D52","v":{"v":0,"d":"0.00"}}]
[null,"Dodatne slike",{"v":25,"d":"25.00"},{"v":25,"d":"25.00"},{"$f":"'Odeća-Prijem-Muzika-Slike'!$C53-'Odeća-Prijem-Muzika-Slike'!$D53","v":{"v":0,"d":"0.00"}}]
[null,"Foto-albumi",{"v":100,"d":"100.00"},{"v":100,"d":"100.00"},{"$f":"'Odeća-Prijem-Muzika-Slike'!$C54-'Odeća-Prijem-Muzika-Slike'!$D54","v":{"v":0,"d":"0.00"}}]
[null,"Videografija",{"v":200,"d":"200.00"},{"v":150,"d":"150.00"},{"$f":"'Odeća-Prijem-Muzika-Slike'!$C55-'Odeća-Prijem-Muzika-Slike'!$D55","v":{"v":50,"d":"50.00"}}]
[null,"Ukupno za fotografije",{"$f":"SUBTOTAL(109,Fotografija[PROCENJENO])","v":{"v":1625,"d":"1,625.00"}},{"$f":"SUBTOTAL(109,Fotografija[STVARNO])","v":{"v":1575,"d":"1,575.00"}},{"$f":"SUBTOTAL(109,Fotografija[IZNAD/ISPOD])","v":{"v":50,"d":"50.00"}}]

{"sheet":"Ukrasi-Cveće-Pokloni-Putovanje","index":3,"n_rows":48,"n_cols":5,"rows_kept":48,"merged":[[8,1,8,4],[9,1,9,4],[18,1,18,4],[27,1,27,4],[34,1,34,4]]}
["Unesite procenjeno i stvarno troškove za svaku kategorija u odgovarajućim tabelama u ovom radnom listu. Iznos iznad ili ispod postavljene vrednosti automatski se izračunava. Oznaka „Ukrasi“ je u ćeliji sa desne strane. Korisna uputstva o tome kako da koristite ovaj radni list nalaze se u ćelijama u ovoj koloni. Pritisnite strelicu nadole da biste počeli.","Ukrasi*"]
["Unesite troškove ukrasa, izuzimajući troškove za cveće, u tabeli počevši od ćelije sa desne strane. Sledeće uputstvo se nalazi u ćeliji A11.","KATEGORIJA","PROCENJENO","STVARNO","IZNAD/ISPOD"]
[null,"Trake za stolice",{"v":0,"d":"0.00"},{"v":0,"d":"0.00"},{"$f":"'Ukrasi-Cveće-Pokloni-Putovanje'!$C3-'Ukrasi-Cveće-Pokloni-Putovanje'!$D3","v":{"v":0,"d":"0.00"}}]
[null,"Ukrasi na stolu",{"v":300,"d":"300.00"},{"v":320,"d":"320.00"},{"$f":"'Ukrasi-Cveće-Pokloni-Putovanje'!$C4-'Ukrasi-Cveće-Pokloni-Putovanje'!$D4","v":{"v":-20,"d":"-20.00 "}}]
[null,"Sveće",{"v":100,"d":"100.00"},{"v":75,"d":"75.00"},{"$f":"'Ukrasi-Cveće-Pokloni-Putovanje'!$C5-'Ukrasi-Cveće-Pokloni-Putovanje'!$D5","v":{"v":25,"d":"25.00"}}]
[null,"Rasveta",{"v":100,"d":"100.00"},{"v":75,"d":"75.00"},{"$f":"'Ukrasi-Cveće-Pokloni-Putovanje'!$C6-'Ukrasi-Cveće-Pokloni-Putovanje'!$D6","v":{"v":25,"d":"25.00"}}]
[null,"Baloni",{"v":200,"d":"200.00"},{"v":250,"d":"250.00"},{"$f":"'Ukrasi-Cveće-Pokloni-Putovanje'!$C7-'Ukrasi-Cveće-Pokloni-Putovanje'!$D7","v":{"v":-50,"d":"-50.00 "}}]
[null,"Ukupno za ukrase",{"$f":"SUBTOTAL(109,Ukrasi[PROCENJENO])","v":{"v":700,"d":"700.00"}},{"$f":"SUBTOTAL(109,Ukrasi[STVARNO])","v":{"v":720,"d":"720.00"}},{"$f":"SUBTOTAL(109,Ukrasi[IZNAD/ISPOD])","v":{"v":-20,"d":"-20.00 "}}]
[null,"* Isključuje cveće"]
[]
["Oznaka „Cveće“ je u ćeliji sa desne strane.","Cveće"]
["Unesite detalje u tabelu „Cveće“ počevši od ćelije sa desne strane. Sledeće uputstvo se nalazi u ćeliji A20.","KATEGORIJA","PROCENJENO","STVARNO","IZNAD/ISPOD"]
[null,"Buketi",{"v":500,"d":"500.00"},{"v":450,"d":"450.00"},{"$f":"'Ukrasi-Cveće-Pokloni-Putovanje'!$C13-'Ukrasi-Cveće-Pokloni-Putovanje'!$D13","v":{"v":50,"d":"50.00"}}]
[null,"Ukrasi za revere",{"v":0,"d":"0.00"},{"v":0,"d":"0.00"},{"$f":"'Ukrasi-Cveće-Pokloni-Putovanje'!$C14-'Ukrasi-Cveće-Pokloni-Putovanje'!$D14","v":{"v":0,"d":"0.00"}}]
[null,"Ukrasi",{"v":0,"d":"0.00"},{"v":0,"d":"0.00"},{"$f":"'Ukrasi-Cveće-Pokloni-Putovanje'!$C15-'Ukrasi-Cveće-Pokloni-Putovanje'!$D15","v":{"v":0,"d":"0.00"}}]
[null,"Ceremonija",{"v":400,"d":"400.00"},{"v":400,"d":"400.00"},{"$f":"'Ukrasi-Cveće-Pokloni-Putovanje'!$C16-'Ukrasi-Cveće-Pokloni-Putovanje'!$D16","v":{"v":0,"d":"0.00"}}]
[null,"Prijem",{"v":0,"d":"0.00"},{"v":0,"d":"0.00"},{"$f":"'Ukrasi-Cveće-Pokloni-Putovanje'!$C17-'Ukrasi-Cveće-Pokloni-Putovanje'!$D17","v":{"v":0,"d":"0.00"}}]
[null,"Ukupno za cveće",{"$f":"SUBTOTAL(109,Cveće[PROCENJENO])","v":{"v":900,"d":"900.00"}},{"$f":"SUBTOTAL(109,Cveće[STVARNO])","v":{"v":850,"d":"850.00"}},{"$f":"SUBTOTAL(109,Cveće[IZNAD/ISPOD])","v":{"v":50,"d":"50.00"}}]
[]
["Oznaka „Pokloni“ je u ćeliji sa desne strane.","Pokloni"]
["Unesite detalje u tabelu „Pokloni“ počevši od ćelije sa desne strane. Sledeće uputstvo se nalazi u ćeliji A29.","KATEGORIJA","PROCENJENO","STVARNO","IZNAD/ISPOD"]
[null,"Učesnici",{"v":1000,"d":"1,000.00"},{"v":400,"d":"400.00"},{"$f":"'Ukrasi-Cveće-Pokloni-Putovanje'!$C22-'Ukrasi-Cveće-Pokloni-Putovanje'!$D22","v":{"v":600,"d":"600.00"}}]
[null,"Budući supružnik 1",{"v":150,"d":"150.00"},{"v":200,"d":"200.00"},{"$f":"'Ukrasi-Cveće-Pokloni-Putovanje'!$C23-'Ukrasi-Cveće-Pokloni-Putovanje'!$D23","v":{"v":-50,"d":"-50.00 "}}]
[null,"Budući supružnik 2",{"v":150,"d":"150.00"},{"v":200,"d":"200.00"},{"$f":"'Ukrasi-Cveće-Pokloni-Putovanje'!$C24-'Ukrasi-Cveće-Pokloni-Putovanje'!$D24","v":{"v":-50,"d":"-50.00 "}}]
[null,"Roditelji",{"v":25,"d":"25.00"},{"v":25,"d":"25.00"},{"$f":"'Ukrasi-Cveće-Pokloni-Putovanje'!$C25-'Ukrasi-Cveće-Pokloni-Putovanje'!$D25","v":{"v":0,"d":"0.00"}}]
[null,"Čitači/drugi učesnici",{"v":20,"d":"20.00"},{"v":250,"d":"250.00"},{"$f":"'Ukrasi-Cveće-Pokloni-Putovanje'!$C26-'Ukrasi-Cveće-Pokloni-Putovanje'!$D26","v":{"v":-230,"d":"-230.00 "}}]
[null,"Ukupno za poklone",{"$f":"SUBTOTAL(109,Pokloni[PROCENJENO])","v":{"v":1345,"d":"1,345.00"}},{"$f":"SUBTOTAL(109,Pokloni[STVARNO])","v":{"v":1075,"d":"1,075.00"}},{"$f":"SUBTOTAL(109,Pokloni[IZNAD/ISPOD])","v":{"v":270,"d":"270.00"}}]
[]
["Oznaka „Putovanje“ ili „Prevoz“ je u ćeliji sa desne strane.","Putovanje/prevoz"]
["Unesite detalje u tabelu „Putovanje“ počevši od ćelije sa desne strane. Sledeće uputstvo se nalazi u ćeliji A36.","KATEGORIJA","PROCENJENO","STVARNO","IZNAD/ISPOD"]
[null,"Limuzina/kolica",{"v":100,"d":"100.00"},{"v":125,"d":"125.00"},{"$f":"'Ukrasi-Cveće-Pokloni-Putovanje'!$C31-'Ukrasi-Cveće-Pokloni-Putovanje'!$D31","v":{"v":-25,"d":"-25.00 "}}]
[null,"Parking",{"v":0,"d":"0.00"},{"v":40,"d":"40.00"},{"$f":"'Ukrasi-Cveće-Pokloni-Putovanje'!$C32-'Ukrasi-Cveće-Pokloni-Putovanje'!$D32","v":{"v":-40,"d":"-40.00 "}}]
[null,"Taksi",{"v":0,"d":"0.00"},{"v":0,"d":"0.00"},{"$f":"'Ukrasi-Cveće-Pokloni-Putovanje'!$C33-'Ukrasi-Cveće-Pokloni-Putovanje'!$D33","v":{"v":0,"d":"0.00"}}]
[null,"Ukupno za putovanje/prevoz",{"$f":"SUBTOTAL(109,Putovanje[PROCENJENO])","v":{"v":100,"d":"100.00"}},{"$f":"SUBTOTAL(109,Putovanje[STVARNO])","v":{"v":165,"d":"165.00"}},{"$f":"SUBTOTAL(109,Putovanje[IZNAD/ISPOD])","v":{"v":-65,"d":"-65.00 "}}]
[]
["Oznaka „Ostali troškovi“ je u ćeliji sa desne strane.","Ostali troškovi"]
["Unesite detalje u tabelu Ostali troškovi počevši od ćelije sa desne strane.","KATEGORIJA","PROCENJENO","STVARNO","IZNAD/ISPOD"]
[null,"Vodič",{"v":0,"d":"0.00"},{"v":0,"d":"0.00"},{"$f":"'Ukrasi-Cveće-Pokloni-Putovanje'!$C38-'Ukrasi-Cveće-Pokloni-Putovanje'!$D38","v":{"v":0,"d":"0.00"}}]
[null,"Nadoknada za crkvu/mesto ceremonije",{"v":40,"d":"40.00"},{"v":55,"d":"55.00"},{"$f":"'Ukrasi-Cveće-Pokloni-Putovanje'!$C39-'Ukrasi-Cveće-Pokloni-Putovanje'!$D39","v":{"v":-15,"d":"-15.00 "}}]
[null,"Koordinator venčanja",{"v":0,"d":"0.00"},{"v":0,"d":"0.00"},{"$f":"'Ukrasi-Cveće-Pokloni-Putovanje'!$C40-'Ukrasi-Cveće-Pokloni-Putovanje'!$D40","v":{"v":0,"d":"0.00"}}]
[null,"Probna večera",{"v":450,"d":"450.00"},{"v":450,"d":"450.00"},{"$f":"'Ukrasi-Cveće-Pokloni-Putovanje'!$C41-'Ukrasi-Cveće-Pokloni-Putovanje'!$D41","v":{"v":0,"d":"0.00"}}]
[null,"Verenička žurka",{"v":20,"d":"20.00"},{"v":50,"d":"50.00"},{"$f":"'Ukrasi-Cveće-Pokloni-Putovanje'!$C42-'Ukrasi-Cveće-Pokloni-Putovanje'!$D42","v":{"v":-30,"d":"-30.00 "}}]
[null,"Obasipanje",{"v":30,"d":"30.00"},{"v":20,"d":"20.00"},{"$f":"'Ukrasi-Cveće-Pokloni-Putovanje'!$C43-'Ukrasi-Cveće-Pokloni-Putovanje'!$D43","v":{"v":10,"d":"10.00"}}]
[null,"Sastanci u salonu",{"v":45,"d":"45.00"},{"v":46,"d":"46.00"},{"$f":"'Ukrasi-Cveće-Pokloni-Putovanje'!$C44-'Ukrasi-Cveće-Pokloni-Putovanje'!$D44","v":{"v":-1,"d":"-1.00 "}}]
[null,"Momačko/devojačko veče",{"v":0,"d":"0.00"},{"v":0,"d":"0.00"},{"$f":"'Ukrasi-Cveće-Pokloni-Putovanje'!$C45-'Ukrasi-Cveće-Pokloni-Putovanje'!$D45","v":{"v":0,"d":"0.00"}}]
[null,"Jelo",{"v":300,"d":"300.00"},{"v":400,"d":"400.00"},{"$f":"'Ukrasi-Cveće-Pokloni-Putovanje'!$C46-'Ukrasi-Cveće-Pokloni-Putovanje'!$D46","v":{"v":-100,"d":"-100.00 "}}]
[null,"Hotelske sobe",{"v":0,"d":"0.00"},{"v":0,"d":"0.00"},{"$f":"'Ukrasi-Cveće-Pokloni-Putovanje'!$C47-'Ukrasi-Cveće-Pokloni-Putovanje'!$D47","v":{"v":0,"d":"0.00"}}]
[null,"Ukupna vrednost za ostale troškove",{"$f":"SUBTOTAL(109,OstaliTroškovi[PROCENJENO])","v":{"v":885,"d":"885.00"}},{"$f":"SUBTOTAL(109,OstaliTroškovi[STVARNO])","v":{"v":1021,"d":"1,021.00"}},{"$f":"SUBTOTAL(109,OstaliTroškovi[IZNAD/ISPOD])","v":{"v":-136,"d":"-136.00 "}}]